{"text_format":"1","workbook":"xlsx","n_sheets":3,"sheets":["TDS 2009","Prerrequisitos","Cómo voy"],"not_rendered":{"charts":0,"images":0,"macros":1,"external_links":0,"defined_names":0,"comments":0,"pivot_tables":0},"unopened":[],"bounds":{"document_bytes":16777216,"sheet_cells":100000,"rows_first":2000,"rows_last":500,"rows_between":2000,"halvings":0,"cell_chars":16384,"cell_head_chars":4096},"cells_cut":0,"cells_raw":0,"read":"whole","date_system":"1900"}

{"sheet":"TDS 2009","index":0,"n_rows":44,"n_cols":23,"rows_kept":44,"cut":false,"hidden":false,"merged":[[42,2,42,3],[42,6,42,7],[43,2,44,4],[43,6,44,8],[17,20,17,21],[18,20,19,22],[22,20,22,21],[23,20,24,22],[33,20,37,23],[18,6,19,8],[18,12,19,14],[18,16,19,18],[23,2,24,4],[23,6,24,8],[23,12,24,14],[23,16,24,18],[28,2,29,4],[28,6,29,8],[28,12,29,14],[28,16,29,18],[33,2,34,4],[33,6,34,8],[34,12,35,14],[32,6,32,7],[9,1,9,24],[12,20,12,21],[27,12,27,13],[27,16,27,17],[22,12,22,13],[22,16,22,17],[12,12,12,13],[12,16,12,17],[17,12,17,13],[17,16,17,17],[18,2,19,4],[13,2,14,4],[13,6,14,8],[13,12,14,14],[13,16,14,18],[13,20,14,22],[40,12,41,14],[39,12,39,13],[33,12,33,13],[12,2,12,3],[17,2,17,3],[22,2,22,3],[27,2,27,3],[32,2,32,3],[37,2,37,3],[38,2,39,4],[12,6,12,7],[37,6,37,7],[38,6,39,8],[17,6,17,7],[22,6,22,7],[27,6,27,7]]}
[]
[]
[]
[]
[]
[]
[]
[]
[]
[null,"Lleva el control de tu avance curricular"]
[]
[]
[null,null,"CBAS-1153",null,{"$f":"MAX(C16:E16)","v":0},null,"CBAS-1123",null,{"$f":"MAX(G16:I16)","v":0},null,null,null,"TPCO-1013",null,{"$f":"MAX(M16:O16)","v":0},null,"TEDS-1003",null,{"$f":"MAX(Q16:S16)","v":0},null,"TEDS-1043",null,{"$f":"MAX(U16:W16)","v":0}]
[null,null,"Fundamentación Matemática ",null,null,null,"Aplicaciones Matemáticas ",null,null,null,null,null,"Fundamentos de Lógica y Algoritmos ",null,null,null,"Programación Básica ",null,null,null,"Programación Avanzada "]
[]
[]
[]
[null,null,"CHUM-1003",null,{"$f":"MAX(C21:E21)","v":0},null,"CHUM-1013",null,{"$f":"MAX(G21:I21)","v":0},null,null,null,"TEDS-1013",null,{"$f":"MAX(M21:O21)","v":0},null,"THSD-1003",null,{"$f":"MAX(Q21:S21)","v":0},null,"THSD-1043",null,{"$f":"MAX(U21:W21)","v":0}]
[null,null,"Desarrollo de Pensamiento ",null,null,null,"Ética y Cultura Ciudadana ",null,null,null,null,null,"Aplicaciones Básicas Web ",null,null,null,"Diseño Consulta Bases de Datos ",null,null,null,"Desarrollo de Bases de Datos "]
[]
[]
[]
[null,null,"CBAS-1143",null,{"$f":"MAX(C26:E26)","v":0},null,"DDIN-1003",null,{"$f":"MAX(G26:I26)","v":0},null,null,null,"THSD-1013",null,{"$f":"MAX(M26:O26)","v":0},null,"TEDS-1033",null,{"$f":"MAX(Q26:S26)","v":0},null,"THSD-1033",null,{"$f":"MAX(U26:W26)","v":0}]
[null,null,"Ciencias Experimentales ",null,null,null,"Ideas para Emprendimiento ",null,null,null,null,null,"Objetos de Bases de Datos ",null,null,null,"Programación Bases de Datos ",null,null,null,"Mantenimiento de Hardware "]
[]
[]
[]
[null,null,"CHUM-1123",null,{"$f":"MAX(C31:E31)","v":0},null,"CHUM-1133",null,{"$f":"MAX(G31:I31)","v":0},null,null,null,"THSD-1053",null,{"$f":"MAX(M31:O31)","v":0},null,"TEDS-1023",null,{"$f":"MAX(Q31:S31)","v":0}]
[null,null,"Inglés Básico ",null,null,null,"Inglés Básico Técnico ",null,null,null,null,null,"Sistemas Operativos ",null,null,null,"Gestión Sistemas Operativos"]
[]
[]
[]
[null,null,"CHUM-1103",null,{"$f":"MAX(C36:E36)","v":0},null,"CHUM-1113",null,{"$f":"MAX(G36:I36)","v":0}]
[null,null,"Comprensión en Inglés ",null,null,null,"Escritura en Inglés ",null,null,null,null,null,"TEDS-1053",null,{"$f":"MAX(M37:O37)","v":0},null,null,null,null,null,"Nota: Para cursar la Práctica Laboral del Tecnólogo, debe tener aprobado el 70% del plan de estudios."]
[null,null,null,null,null,null,null,null,null,null,null,null,"Práctica Laboral Tecnólogo  "]
[]
[]
[null,null,"CBAS-1113",null,{"$f":"MAX(C41:E41)","v":0},null,"DDIN-1033",null,{"$f":"MAX(G41:I41)","v":0}]
[null,null,"Aplicaciones Estadísticas  ",null,null,null,"Ciencia y Tecnología"]
[null,null,null,null,null,null,null,null,null,null,null,null,"CBAS-1103",null,{"$f":"MAX(M43:O43)","v":0},null,null,null,null,4,"Módulo aprobado"]
[null,null,null,null,null,null,null,null,null,null,null,null,"Cátedra de desarrollo universitario",null,null,null,null,null,null,2,"Módulo reprobado"]
[null,null,null,null,null,null,null,null,null,null,null,null,null,null,null,null,null,null,null,0,"Módulo pendiente por cursar"]
[null,null,"DDIN-1023",null,{"$f":"MAX(C46:E46)","v":0},null,"DDIN-1013",null,{"$f":"MAX(G46:I46)","v":0}]
[null,null,"Investigación Exploratoria ",null,null,null,"Investigación Descriptiva"]

{"sheet":"Prerrequisitos","index":1,"n_rows":31,"n_cols":24,"rows_kept":31,"cut":false,"hidden":false,"merged":[[9,1,9,29],[12,12,12,13],[27,12,27,13],[12,6,12,7],[22,12,22,13],[17,12,17,13],[22,6,22,7],[17,6,17,7],[12,23,15,28],[17,23,20,28],[18,6,19,8],[13,12,14,14],[13,6,14,8],[18,12,19,14],[23,6,24,8],[23,12,24,14],[22,23,25,28],[27,23,30,28],[27,6,27,7],[28,6,29,8],[28,12,29,14]]}
[]
[]
[]
[]
[]
[]
[]
[]
[]
[null,"Lleva el control de tu avance curricular"]
[]
[]
[null,null,null,null,null,null,"CBAS-1153",null,{"$f":"MAX(G16:I16)","v":0},null,null,null,"CBAS-1123",null,{"$f":"MAX(M16:O16)","v":0},null,null,null,null,null,null,null,null,{"$f":"IF(OR(AND(ISNUMBER(G16),G16>=3),AND(ISNUMBER(H16),H16>=3),AND(ISNUMBER(I16),I16>=3)),\"Puede cursar Aplicaciones Matemáticas\",\"Tiene pendiente por aprobar Fundamentación Matemática.\")","v":"Tiene pendiente por aprobar Fundamentación Matemática."}]
[null,null,null,null,null,null,"Fundamentación Matemática",null,null,null,null,null,"Aplicaciones Matemáticas "]
[]
[null,null,null,null,null,null,{"$f":"IF('TDS 2009'!C16=\"\",\"\",'TDS 2009'!C16)","v":""},{"$f":"IF('TDS 2009'!D16=\"\",\"\",'TDS 2009'!D16)","v":""},{"$f":"IF('TDS 2009'!E16=\"\",\"\",'TDS 2009'!E16)","v":""},null,null,null,{"$f":"IF('TDS 2009'!G16=\"\",\"\",'TDS 2009'!G16)","v":""},{"$f":"IF('TDS 2009'!H16=\"\",\"\",'TDS 2009'!H16)","v":""},{"$f":"IF('TDS 2009'!I16=\"\",\"\",'TDS 2009'!I16)","v":""}]
[]
[null,null,null,null,null,null,"CHUM-1123",null,{"$f":"MAX(G21:I21)","v":0},null,null,null,"CHUM-1103",null,{"$f":"MAX(M21:O21)","v":0},null,null,null,null,null,null,null,null,{"$f":"IF(AND(MAX('TDS 2009'!$C$31:$E$31)<3,MAX('TDS 2009'!$G$31:$I$31)<3),\"Tiene pendiente por cursar Inglés Básico e Inglés Básico Técnico\",IF(AND(MAX('TDS 2009'!$C$31:$E$31)<3,MAX('TDS 2009'!$G$31:$I$31)>=3),\"Tiene pendiente por cursar Inglés Básico\",IF(AND(MAX('TDS 2009'!$C$31:$E$31)>=3,MAX('TDS 2009'!$G$31:$I$31)<3),\"Tiene pendiente por cursar Inglés Básico Técnico\",\"Puede cursar Comprensión en Inglés\")))","v":"Tiene pendiente por cursar Inglés Básico e Inglés Básico Técnico"}]
[null,null,null,null,null,null,"Inglés Básico ",null,null,null,null,null,"Comprensión en Inglés "]
[]
[null,null,null,null,null,null,{"$f":"IF('TDS 2009'!C31=\"\",\"\",'TDS 2009'!C31)","v":""},{"$f":"IF('TDS 2009'!D31=\"\",\"\",'TDS 2009'!D31)","v":""},{"$f":"IF('TDS 2009'!E31=\"\",\"\",'TDS 2009'!E31)","v":""},null,null,null,{"$f":"IF('TDS 2009'!C36=\"\",\"\",'TDS 2009'!C36)","v":""},{"$f":"IF('TDS 2009'!D36=\"\",\"\",'TDS 2009'!D36)","v":""},{"$f":"IF('TDS 2009'!E36=\"\",\"\",'TDS 2009'!E36)","v":""}]
[]
[null,null,null,null,null,null,"CHUM-1133",null,{"$f":"MAX(G26:I26)","v":0},null,null,null,"CHUM-1113",null,{"$f":"MAX(M26:O26)","v":0},null,null,null,null,null,null,null,null,{"$f":"IF(AND(MAX('TDS 2009'!$C$31:$E$31)<3,MAX('TDS 2009'!$G$31:$I$31)<3),\"Tiene pendiente por cursar Inglés Básico e Inglés Básico Técnico\",IF(AND(MAX('TDS 2009'!$C$31:$E$31)<3,MAX('TDS 2009'!$G$31:$I$31)>=3),\"Tiene pendiente por cursar Inglés Básico\",IF(AND(MAX('TDS 2009'!$C$31:$E$31)>=3,MAX('TDS 2009'!$G$31:$I$31)<3),\"Tiene pendiente por cursar Inglés Básico Técnico\",\"Puede cursar Escritura en Inglés\")))","v":"Tiene pendiente por cursar Inglés Básico e Inglés Básico Técnico"}]
[null,null,null,null,null,null,"Inglés Básico Técnico ",null,null,null,null,null,"Escritura en Inglés "]
[]
[null,null,null,null,null,null,{"$f":"IF('TDS 2009'!G31=\"\",\"\",'TDS 2009'!G31)","v":""},{"$f":"IF('TDS 2009'!H31=\"\",\"\",'TDS 2009'!H31)","v":""},{"$f":"IF('TDS 2009'!I31=\"\",\"\",'TDS 2009'!I31)","v":""},null,null,null,{"$f":"IF('TDS 2009'!G36=\"\",\"\",'TDS 2009'!G36)","v":""},{"$f":"IF('TDS 2009'!H36=\"\",\"\",'TDS 2009'!H36)","v":""},{"$f":"IF('TDS 2009'!I36=\"\",\"\",'TDS 2009'!I36)","v":""}]
[]
[null,null,null,null,null,null,"DDIN-1023",null,{"$f":"MAX(G31:I31)","v":0},null,null,null,"DDIN-1013",null,{"$f":"MAX(M31:O31)","v":0},null,null,null,null,null,null,null,null,{"$f":"IF(OR(AND(ISNUMBER(G31),G31>=3),AND(ISNUMBER(H31),H31>=3),AND(ISNUMBER(I31),I31>=3)),\"Puede cursar Investigación Descriptiva\",\"Tiene pendiente por aprobar Investigación Exploratoria.\")","v":"Tiene pendiente por aprobar Investigación Exploratoria."}]
[null,null,null,null,null,null,"Investigación Exploratoria ",null,null,null,null,null,"Investigación Descriptiva"]
[]
[null,null,null,null,null,null,{"$f":"IF('TDS 2009'!C46=\"\",\"\",'TDS 2009'!C46)","v":""},{"$f":"IF('TDS 2009'!D46=\"\",\"\",'TDS 2009'!D46)","v":""},{"$f":"IF('TDS 2009'!E46=\"\",\"\",'TDS 2009'!E46)","v":""},null,null,null,{"$f":"IF('TDS 2009'!G46=\"\",\"\",'TDS 2009'!G46)","v":""},{"$f":"IF('TDS 2009'!H46=\"\",\"\",'TDS 2009'!H46)","v":""},{"$f":"IF('TDS 2009'!I46=\"\",\"\",'TDS 2009'!I46)","v":""}]

{"sheet":"Cómo voy","index":2,"n_rows":34,"n_cols":23,"rows_kept":34,"cut":false,"hidden":false,"merged":[[25,6,26,6],[25,7,26,7],[25,9,26,9],[25,10,26,10],[9,1,9,24],[31,7,31,8],[12,7,12,8],[12,3,12,6],[31,3,31,6],[23,9,24,9],[23,10,24,10],[23,2,24,2],[23,3,24,5],[23,7,24,7],[23,6,24,6],[25,2,26,2],[25,3,26,5]]}
[]
[]
[]
[]
[]
[]
[]
[]
[]
[null,"Lleva el control de tu avance curricular"]
[]
[]
[null,null,"Código","Módulo",null,null,null,"Prerrequisitos",null,"Créditos ","Estado",null,null,null,"Código","Módulo",null,null,null,"Prerrequisitos",null,"Créditos ","Estado"]
[null,null,"CBAS-1153","Fundamentación Matemática ",null,null,null,null,null,0,{"$f":"MAX('TDS 2009'!$C$16:$E$16)","v":0},null,null,null,"THSD-1023","Fundamentos de Lógica y Algoritmos ",null,null,null,null,null,4,{"$f":"MAX('TDS 2009'!$M$16:$O$16)","v":0}]
[null,null,"CBAS-1113","Aplicaciones Estadísticas ",null,null,null,null,null,4,{"$f":"MAX('TDS 2009'!C41:E41)","v":0},null,null,null,"THSD-1003","Diseño Consulta Bases de Datos ",null,null,null,null,null,4,{"$f":"MAX('TDS 2009'!$Q$21:$S$21)","v":0}]
[null,null,"CBAS-1143","Ciencias Experimentales ",null,null,null,null,null,4,{"$f":"MAX('TDS 2009'!$C$26:$E$26)","v":0},null,null,null,"THSD-1013","Objetos de Bases de Datos ",null,null,null,null,null,4,{"$f":"MAX('TDS 2009'!$M$26:$O$26)","v":0}]
[null,null,"DDIN-1033","Ciencia y Tecnología",null,null,null,null,null,3,{"$f":"MAX('TDS 2009'!G41:I41)","v":0},null,null,null,"TEDS-1003","Programación Básica ",null,null,null,null,null,4,{"$f":"MAX('TDS 2009'!$Q$16:$S$16)","v":0}]
[null,null,"CBAS-1123","Aplicaciones Matemáticas ",null,null,null,"CBAS-1153",{"$f":"MAX('TDS 2009'!$C$16:$E$16)","v":0},4,{"$f":"MAX('TDS 2009'!$G$16:$I$16)","v":0},null,null,null,"THSD-1033","Mantenimiento de Hardware ",null,null,null,null,null,4,{"$f":"MAX('TDS 2009'!$U$26:$W$26)","v":0}]
[null,null,"CHUM-1013","Ética y Cultura Ciudadana ",null,null,null,null,null,4,{"$f":"MAX('TDS 2009'!$G$21:$I$21)","v":0},null,null,null,"THSD-1053","Sistemas Operativos ",null,null,null,null,null,4,{"$f":"MAX('TDS 2009'!$M$31:$O$31)","v":0}]
[null,null,"DDIN-1003","Ideas para Emprendimiento ",null,null,null,null,null,2,{"$f":"MAX('TDS 2009'!$G$26:$I$26)","v":0},null,null,null,"THSD-1043","Desarrollo de Bases de Datos ",null,null,null,null,null,4,{"$f":"MAX('TDS 2009'!$U$21:$W$21)","v":0}]
[null,null,"CHUM-1003","Desarrollo de Pensamiento ",null,null,null,null,null,2,{"$f":"MAX('TDS 2009'!$C$21:$E$21)","v":0},null,null,null,"TEDS-1023","Gestión Sistemas Operativos",null,null,null,null,null,4,{"$f":"MAX('TDS 2009'!$Q$31:$S$31)","v":0}]
[null,null,"CHUM-1123","Inglés Básico ",null,null,null,null,null,2,{"$f":"MAX('TDS 2009'!$C$31:$E$31)","v":0},null,null,null,"TEDS-1043","Programación Avanzada ",null,null,null,null,null,4,{"$f":"MAX('TDS 2009'!$U$16:$W$16)","v":0}]
[null,null,"CHUM-1133","Inglés Básico Técnico ",null,null,null,null,null,2,{"$f":"MAX('TDS 2009'!$G$31:$I$31)","v":0},null,null,null,"TEDS-1033","Programación Bases de Datos ",null,null,null,null,null,4,{"$f":"MAX('TDS 2009'!$Q$26:$S$26)","v":0}]
[null,null,"CHUM-1103","Comprensión en Inglés ",null,null,null,"CHUM-1123 y CHUM-1133",{"$f":"MAX('TDS 2009'!$C$31:$E$31)","v":0},2,{"$f":"MAX('TDS 2009'!$C$36:$E$36)","v":0},null,null,null,"TEDS-1013","Aplicaciones Básicas Web ",null,null,null,null,null,4,{"$f":"MAX('TDS 2009'!$M$21:$O$21)","v":0}]
[null,null,null,null,null,null,null,null,{"$f":"MAX('TDS 2009'!$G$31:$I$31)","v":0}]
[null,null,"CHUM-1113","Escritura en Inglés ",null,null,null,"CHUM-1123 y CHUM-1133",{"$f":"MAX('TDS 2009'!$C$31:$E$31)","v":0},2,{"$f":"MAX('TDS 2009'!$G$36:$I$36)","v":0}]
[null,null,null,null,null,null,null,null,{"$f":"MAX('TDS 2009'!$G$31:$I$31)","v":0},null,null,null,null,null,"Código","Módulo",null,null,null,"Prerrequisitos",null,"Créditos ","Estado"]
[null,null,"DDIN-1023","Investigación Exploratoria ",null,null,null,null,null,2,{"$f":"MAX('TDS 2009'!C46:E46)","v":0},null,null,null,"TEDS-1053","Práctica Laboral Tecnólogo ",null,null,null,null,null,9,{"$f":"MAX('TDS 2009'!$M$37:$O$37)","v":0}]
[null,null,"DDIN-1013","Investigación Descriptiva ",null,null,null,"DDIN-1023",{"$f":"MAX('TDS 2009'!C46:E46)","v":0},2,{"$f":"MAX('TDS 2009'!G46:I46)","v":0}]
[]
[]
[null,null,"Código","Módulo",null,null,null,"Prerrequisitos",null,"Créditos ","Estado",null,null,null,4,"Módulo aprobado"]
[null,null,"CBAS-1103","Cátedra de desarrollo universitario",null,null,null,null,null,0,{"$f":"MAX('TDS 2009'!$M$43:$O$43)","v":0},null,null,null,2,"Módulo reprobado"]
[null,null,null,null,null,null,null,null,null,null,null,null,null,null,0,"Módulo pendiente por cursar"]